[Event "34th MPL National U12 Chess-ch 2022"]
[Site "Mysore"]
[Date "2022.04.11"]
[Round "6.2"]
[White "Haridev S"]
[Black "Adireddy Arjun"]
[Result "0-1"]
[ECO "B54"]
[WhiteElo "1458"]
[BlackElo "1796"]
[Annotator "NA RC"]
[PlyCount "138"]
[EventDate "2022.04.09"]
[EventCountry "IND"]
[SourceTitle "playchess.com"]
[Source "ChessBase"]
[SourceQuality "1"]
[TimeControl "5400+30"]

1. e4 {[%emt 0:00:08]} c5 {[%emt 0:00:11]} 2. Nf3 {[%emt 0:00:12]} d6 {[%emt 0:00:10]} 3. d4 {[%emt 0:00:14]} cxd4 {[%emt 0:00:06]} 4. Nxd4 {[%emt 0:00:14]} Nf6 {[%emt 0:00:03]} 5. f3 {[%emt 0:00:14]} a6 {[%emt 0:00:20]} 6. c4 {[%emt 0:00:20]} Nc6 {[%emt 0:04:00]} 7. Be3 {[%emt 0:00:29]} Qc7 {[%emt 0:01:28]} 8. Nc3 {[%emt 0:00:36]} e6 {[%emt 0:00:23]} 9. Be2 {[%emt 0:01:15]} Be7 {[%emt 0:01:37]} 10. O-O {[%emt 0:01:06]} O-O {[%emt 0:02:06]} 11. Rc1 {[%emt 0:01:07]} Nxd4 {[%emt 0:04:51]} 12. Qxd4 {[%emt 0:01:45]} Nd7 {[%emt 0:05:25]} 13. Rfd1 {[%emt 0:03:13]} b6 {[%emt 0:01:38]} 14. b4 {[%emt 0:01:35]} Rb8 {[%emt 0:05:18]} 15. a3 {[%emt 0:06:15]} Bb7 {[%emt 0:01:27]} 16. Qd2 {[%emt 0:08:31]} Rfd8 {[%emt 0:06:01]} 17. f4 {[%emt 0:06:08]} Rbc8 {[%emt 0:10:22]} 18. Bf3 {[%emt 1:06:08]} Qb8 {[%emt 0:03:10]} 19. Ne2 {[%emt 0:00:00]} Nf6 {[%emt 0:09:57]} 20. Ng3 {[%emt 0:00:00]} d5 {[%emt 0:00:34]} 21. cxd5 {[%emt 0:00:00]} Rxc1 {[%emt 0:07:16]} 22. Qxc1 {[%emt 0:00:00]} exd5 {[%emt 0:00:23]} 23. e5 {[%emt 0:00:00]} Ne4 {[%emt 0:02:13]} 24. Nf5 {[%emt 0:00:00]} Bf8 {[%emt 0:00:54]} 25. Bxe4 {[%emt 0:00:00]} dxe4 {[%emt 0:00:07]} 26. Bxb6 {[%emt 0:00:00]} Rd3 {[%emt 0:04:51]} 27. Rxd3 {[%emt 0:00:00]} exd3 {[%emt 0:00:18]} 28. Be3 {[%emt 0:00:00]} Qd8 {[%emt 0:02:16]} 29. Qd2 {[%emt 0:00:31]} Qd5 {[%emt 0:00:49]} 30. Nd4 {[%emt 0:01:01]} a5 {[%emt 0:04:09]} 31. Nf3 {[%emt 0:02:52]} axb4 {[%emt 0:00:11]} 32. axb4 {[%emt 0:00:08]} Qc4 {[%emt 0:01:05]} 33. Ne1 {[%emt 0:01:21]} Be4 {[%emt 0:04:40]} 34. Bc5 {[%emt 0:00:41]} Bxc5+ {[%emt 0:00:10]} 35. bxc5 {[%emt 0:00:04]} Qxc5+ {[%emt 0:00:07]} 36. Kf1 {[%emt 0:00:10]} Qd4 {[%emt 0:01:19]} 37. g3 {[%emt 0:01:10]} h5 {[%emt 0:02:50]} 38. Ng2 {[%emt 0:01:08]} Bf3 {[%emt 0:02:03]} 39. Ne3 {[%emt 0:00:51]} Be2+ {[%emt 0:00:51]} 40. Kf2 {[%emt 0:00:31]} Qe4 {[%emt 0:00:30]} 41. Qc1 {[%emt 0:00:24]} g6 {[%emt 0:01:03]} 42. Ke1 {[%emt 0:00:36]} Qh1+ {[%emt 0:00:32]} 43. Kd2 {[%emt 0:00:05]} Qxh2 {[%emt 0:00:07]} 44. e6 {[%emt 0:00:55]} Bg4+ {[%emt 0:05:20]} 45. Kxd3 {[%emt 0:00:20]} Bxe6 {[%emt 0:00:10]} 46. f5 {[%emt 0:00:41]} gxf5 {[%emt 0:00:33]} 47. Nf1 {[%emt 0:00:04]} Qh1 {[%emt 0:00:33]} 48. Qg5+ {[%emt 0:00:14]} Kh7 {[%emt 0:00:08]} 49. Ne3 {[%emt 0:00:19]} Qf3 {[%emt 0:01:52]} 50. Kd2 {[%emt 0:00:38]} Bc8 {[%emt 0:03:56]} 51. Qf6 {[%emt 0:01:06]} Qf2+ {[%emt 0:01:14]} 52. Kd3 {[%emt 0:00:13]} Qa2 {[%emt 0:00:18]} 53. Qg5 {[%emt 0:00:53]} Qa6+ {[%emt 0:00:26]} 54. Kd2 {[%emt 0:00:32]} Qg6 {[%emt 0:01:21]} 55. Qf4 {[%emt 0:00:27]} Qh6 {[%emt 0:00:59]} 56. Qh4 {[%emt 0:00:32]} Be6 {[%emt 0:00:44]} 57. Ke2 {[%emt 0:00:28]} f6 {[%emt 0:01:16]} 58. Qb4 {[%emt 0:00:19]} Qg7 {[%emt 0:00:54]} 59. Qd6 {[%emt 0:00:43]} Qd7 {[%emt 0:00:33]} 60. Qf4 {[%emt 0:00:30]} Kg6 {[%emt 0:00:11]} 61. Qb8 {[%emt 0:00:28]} Bd5 {[%emt 0:00:36]} 62. Qf4 {[%emt 0:00:33]} Be4 {[%emt 0:00:07]} 63. Kf2 {[%emt 0:00:30]} Qd2+ {[%emt 0:00:11]} 64. Kg1 {[%emt 0:00:31]} Qe1+ {[%emt 0:00:07]} 65. Nf1 {[%emt 0:00:03]} Bd3 {[%emt 0:00:07]} 66. Qb8 {[%emt 0:00:45]} Qxf1+ {[%emt 0:00:05]} 67. Kh2 {[%emt 0:00:03]} Qf2+ {[%emt 0:00:08]} 68. Kh3 {[%emt 0:00:04]} Bf1+ {[%emt 0:00:07]} 69. Kh4 {[%emt 0:00:08]} Qh2# {[%emt 0:00:03]} 0-1

[Event "34th MPL National U12 Chess-ch 2022"]
[Site "Mysore"]
[Date "2022.04.11"]
[Round "6.3"]
[White "Gandhi, Aakash"]
[Black "Vivaan Vijay Saraogi"]
[Result "0-1"]
[ECO "D85"]
[WhiteElo "1698"]
[BlackElo "1519"]
[Annotator "NA RC"]
[PlyCount "154"]
[EventDate "2022.04.09"]
[EventCountry "IND"]
[SourceTitle "playchess.com"]
[Source "ChessBase"]
[SourceQuality "1"]
[TimeControl "5400+30"]

1. d4 {[%emt 0:00:14]} Nf6 {[%emt 0:00:10]} 2. c4 {[%emt 0:00:48]} g6 {[%emt 0:00:19]} 3. Nc3 {[%emt 0:01:19]} d5 {[%emt 0:00:06]} 4. cxd5 {[%emt 0:00:08]} Nxd5 {[%emt 0:00:07]} 5. e4 {[%emt 0:00:16]} Nxc3 {[%emt 0:00:04]} 6. bxc3 {[%emt 0:00:43]} Bg7 {[%emt 0:00:08]} 7. Be3 {[%emt 0:00:20]} c5 {[%emt 0:00:11]} 8. Rc1 {[%emt 0:00:19]} O-O {[%emt 0:00:29]} 9. Qd2 {[%emt 0:00:59]} Qa5 {[%emt 0:01:08]} 10. d5 {[%emt 0:01:39]} f5 {[%emt 0:00:50]} 11. exf5 {[%emt 0:01:33]} Bxf5 {[%emt 0:00:16]} 12. Nf3 {[%emt 0:01:29]} Nd7 {[%emt 0:00:21]} 13. Nh4 {[%emt 0:02:32]} Bb1 {[%emt 0:00:41]} 14. d6 {[%emt 0:01:11]} Bxa2 {[%emt 0:05:04]} 15. dxe7 {[%emt 0:04:37]} Rf7 {[%emt 0:00:01]} 16. Be2 {[%emt 0:02:37]} Rxe7 {[%emt 0:00:52]} 17. O-O {[%emt 0:00:15]} Bf7 {[%emt 0:01:50]} 18. Nf3 {[%emt 0:02:48]} Nf6 {[%emt 0:02:08]} 19. Ng5 {[%emt 0:01:59]} Ne4 {[%emt 0:00:02]} 20. Nxe4 {[%emt 0:00:24]} Rxe4 {[%emt 0:00:11]} 21. Bf3 {[%emt 1:14:50]} Rc4 {[%emt 0:11:43]} 22. Bd5 {[%emt 0:00:00]} Rd8 {[%emt 0:00:03]} 23. Bxf7+ {[%emt 0:00:00]} Kxf7 {[%emt 0:00:14]} 24. Qe2 {[%emt 0:00:00]} Rxc3 {[%emt 0:05:10]} 25. Bd2 {[%emt 0:00:00]} Qa2 {[%emt 0:00:02]} 26. Rxc3 {[%emt 0:00:00]} Bxc3 {[%emt 0:00:11]} 27. Qf3+ {[%emt 0:00:00]} Bf6 {[%emt 0:00:02]} 28. Qxb7+ {[%emt 0:00:00]} Kg8 {[%emt 0:00:25]} 29. Be3 {[%emt 0:00:00]} Bd4 {[%emt 0:01:49]} 30. Qe7 {[%emt 0:00:00]} Rf8 {[%emt 0:03:09]} 31. Rd1 {[%emt 0:00:00]} Qb3 {[%emt 0:02:29]} 32. Re1 {[%emt 0:00:00]} Bxe3 {[%emt 0:16:22]} 33. Rxe3 {[%emt 0:00:00]} Qf7 {[%emt 0:04:01]} 34. Qh4 {[%emt 0:00:00]} Qd5 {[%emt 0:00:17]} 35. h3 {[%emt 0:00:00]} Rf7 {[%emt 0:04:24]} 36. Qg3 {[%emt 0:00:00]} Qd1+ {[%emt 0:02:36]} 37. Kh2 {[%emt 0:00:00]} Qd8 {[%emt 0:03:09]} 38. f4 {[%emt 0:00:00]} Qd4 {[%emt 0:04:42]} 39. Rf3 {[%emt 0:00:00]} Qd6 {[%emt 0:01:28]} 40. h4 {[%emt 0:00:00]} Rf5 {[%emt 0:00:48]} 41. Qf2 {[%emt 0:00:00]} Kf8 {[%emt 0:06:56]} 42. Kh3 {[%emt 0:00:00]} h5 {[%emt 0:00:25]} 43. Qe1 {[%emt 0:00:00]} Rxf4 {[%emt 0:02:56]} 44. Re3 {[%emt 0:00:00]} Qd7+ {[%emt 0:00:34]} 45. Kh2 {[%emt 0:00:00]} Rf6 {[%emt 0:02:05]} 46. Re4 {[%emt 0:00:00]} Qc7+ {[%emt 0:01:08]} 47. Kh3 {[%emt 0:00:00]} Kf7 {[%emt 0:03:03]} 48. Qc3 {[%emt 0:00:00]} Qd7+ {[%emt 0:02:11]} 49. Kh2 {[%emt 0:00:00]} Qd6+ {[%emt 0:00:07]} 50. Kh3 {[%emt 0:00:00]} a5 {[%emt 0:04:11]} 51. Qb3+ {[%emt 0:00:00]} Kg7 {[%emt 0:02:15]} 52. Qa3 {[%emt 0:00:00]} Rf1 {[%emt 0:01:05]} 53. Qc3+ {[%emt 0:00:00]} Kh7 {[%emt 0:00:28]} 54. g3 {[%emt 0:00:00]} Qd7+ {[%emt 0:08:24]} 55. Kh2 {[%emt 0:00:00]} Rf2+ {[%emt 0:00:51]} 56. Kg1 {[%emt 0:00:00]} Ra2 {[%emt 0:00:17]} 57. Qe1 {[%emt 0:00:00]} Kg8 {[%emt 0:01:07]} 58. Re8+ {[%emt 0:00:00]} Kf7 {[%emt 0:00:04]} 59. Re4 {[%emt 0:00:00]} Rd2 {[%emt 0:00:57]} 60. Rf4+ {[%emt 0:00:00]} Kg8 {[%emt 0:00:10]} 61. Qe5 {[%emt 0:00:00]} Rd1+ {[%emt 0:00:12]} 62. Kg2 {[%emt 0:00:00]} Qd2+ {[%emt 0:00:16]} 63. Rf2 {[%emt 0:00:00]} Qd5+ {[%emt 0:00:14]} 64. Qxd5+ {[%emt 0:00:00]} Rxd5 {[%emt 0:00:06]} 65. Rf6 {[%emt 0:00:00]} Kg7 {[%emt 0:00:40]} 66. Ra6 {[%emt 0:00:00]} c4 {[%emt 0:00:11]} 67. Rc6 {[%emt 0:00:00]} Rd4 {[%emt 0:00:28]} 68. Ra6 {[%emt 0:00:00]} c3 {[%emt 0:01:00]} 69. Rxa5 {[%emt 0:00:00]} Rc4 {[%emt 0:00:10]} 70. Ra1 {[%emt 0:00:00]} c2 {[%emt 0:00:06]} 71. Rc1 {[%emt 0:00:00]} Rc3 {[%emt 0:00:17]} 72. Kf2 {[%emt 0:00:00]} Kf6 {[%emt 0:00:13]} 73. Ke1 {[%emt 0:00:00]} Kf5 {[%emt 0:00:13]} 74. Kf2 {[%emt 0:00:00]} Kg4 {[%emt 0:00:13]} 75. Ke2 {[%emt 0:00:00]} Kxg3 {[%emt 0:00:05]} 76. Kd2 {[%emt 0:00:00]} Rc6 {[%emt 0:00:14]} 77. Rg1+ {[%emt 0:00:00]} Kxh4 {[%emt 0:00:48]} 0-1

[Event "34th MPL National U12 Chess-ch 2022"]
[Site "Mysore"]
[Date "2022.04.11"]
[Round "6.4"]
[White "Darshan, V P S"]
[Black "Goutham Krishna H"]
[Result "1/2-1/2"]
[ECO "B51"]
[WhiteElo "1670"]
[BlackElo "1541"]
[Annotator "NA RC"]
[PlyCount "96"]
[EventDate "2022.04.09"]
[EventCountry "IND"]
[SourceTitle "playchess.com"]
[Source "ChessBase"]
[SourceQuality "1"]
[TimeControl "5400+30"]

1. e4 {[%emt 0:00:02]} c5 {[%emt 0:00:04]} 2. Nf3 {[%emt 0:00:08]} d6 {[%emt 0:00:05]} 3. c3 {[%emt 0:00:09]} Nf6 {[%emt 0:00:09]} 4. Bb5+ {[%emt 0:00:11]} Nbd7 {[%emt 0:01:07]} 5. d3 {[%emt 0:00:23]} a6 {[%emt 0:00:10]} 6. Bxd7+ {[%emt 0:00:40]} Bxd7 {[%emt 0:00:10]} 7. O-O {[%emt 0:00:08]} g6 {[%emt 0:01:45]} 8. Re1 {[%emt 0:00:16]} Bg7 {[%emt 0:01:17]} 9. d4 {[%emt 0:03:25]} Bc6 {[%emt 0:04:29]} 10. d5 {[%emt 0:00:58]} Bd7 {[%emt 0:00:06]} 11. a4 {[%emt 0:03:00]} b6 {[%emt 0:02:38]} 12. Na3 {[%emt 0:00:58]} O-O {[%emt 0:00:25]} 13. Bf4 {[%emt 0:02:43]} Bg4 {[%emt 0:01:53]} 14. h3 {[%emt 0:00:23]} Bxf3 {[%emt 0:00:08]} 15. Qxf3 {[%emt 0:00:10]} Nd7 {[%emt 0:00:29]} 16. Qe3 {[%emt 0:00:48]} Re8 {[%emt 0:02:27]} 17. Rad1 {[%emt 0:00:32]} Qb8 {[%emt 0:01:11]} 18. Qd3 {[%emt 0:02:11]} Qb7 {[%emt 0:00:34]} 19. Bg3 {[%emt 0:03:37]} Rab8 {[%emt 0:01:56]} 20. f4 {[%emt 0:00:38]} b5 {[%emt 0:00:13]} 21. axb5 {[%emt 0:00:06]} axb5 {[%emt 0:00:01]} 22. e5 {[%emt 0:00:22]} c4 {[%emt 0:02:05]} 23. Qe3 {[%emt 0:01:17]} Nc5 {[%emt 0:11:28]} 24. exd6 {[%emt 0:01:58]} Nd3 {[%emt 0:00:17]} 25. Re2 {[%emt 0:02:03]} Qxd5 {[%emt 0:02:04]} 26. dxe7 {[%emt 0:00:38]} Bf6 {[%emt 0:02:00]} 27. Nc2 {[%emt 0:07:10]} Rxe7 {[%emt 0:01:23]} 28. Qd2 {[%emt 0:00:37]} Rbe8 {[%emt 0:00:44]} 29. Rxe7 {[%emt 1:09:29]} Rxe7 {[%emt 0:00:32]} 30. Nb4 {[%emt 0:00:00]} Nxb4 {[%emt 0:01:57]} 31. Qxd5 {[%emt 0:00:00]} Nxd5 {[%emt 0:00:02]} 32. Rxd5 {[%emt 0:00:00]} b4 {[%emt 0:00:09]} 33. cxb4 {[%emt 0:00:00]} Bxb2 {[%emt 0:00:15]} 34. Kf1 {[%emt 0:00:00]} Re4 {[%emt 0:31:54]} 35. b5 {[%emt 0:00:00]} Bd4 {[%emt 0:01:37]} 36. Rd8+ {[%emt 0:00:00]} Kg7 {[%emt 0:00:08]} 37. Rc8 {[%emt 0:00:00]} Be3 {[%emt 0:01:22]} 38. Ke2 {[%emt 0:00:00]} f5 {[%emt 0:00:16]} 39. Kd1 {[%emt 0:00:00]} Rd4+ {[%emt 0:00:37]} 40. Ke2 {[%emt 0:00:00]} Re4 {[%emt 0:00:24]} 41. Kd1 {[%emt 0:00:00]} Bg1 {[%emt 0:01:45]} 42. Rc6 {[%emt 0:00:00]} Re3 {[%emt 0:02:30]} 43. Be1 {[%emt 0:00:00]} Rb3 {[%emt 0:00:50]} 44. Rxc4 {[%emt 0:00:00]} Rxb5 {[%emt 0:00:43]} 45. Bc3+ {[%emt 0:00:00]} Kh6 {[%emt 0:00:48]} 46. Rc7 {[%emt 0:00:00]} Bh2 {[%emt 0:02:46]} 47. Bg7+ {[%emt 0:00:00]} Kh5 {[%emt 0:00:04]} 48. Be5 {[%emt 0:00:00]} h6 {[%emt 0:00:22]} 1/2-1/2

[Event "34th MPL National U12 Chess-ch 2022"]
[Site "Mysore"]
[Date "2022.04.11"]
[Round "6.5"]
[White "Gaikwad Manas"]
[Black "Sherla Prathamesh"]
[Result "1/2-1/2"]
[ECO "C16"]
[WhiteElo "1698"]
[BlackElo "1484"]
[Annotator "NA RC"]
[PlyCount "106"]
[EventDate "2022.04.09"]
[EventCountry "IND"]
[SourceTitle "playchess.com"]
[Source "ChessBase"]
[SourceQuality "1"]
[TimeControl "5400+30"]

1. e4 {[%emt 0:00:08]} e6 {[%emt 0:00:18]} 2. d4 {[%emt 0:00:17]} d5 {[%emt 0:00:30]} 3. Nc3 {[%emt 0:00:41]} Bb4 {[%emt 0:00:19]} 4. e5 {[%emt 0:00:11]} Qd7 {[%emt 0:00:44]} 5. Qg4 {[%emt 0:00:43]} f5 {[%emt 0:00:19]} 6. Qh5+ {[%emt 0:00:08]} g6 {[%emt 0:01:23]} 7. Qh3 {[%emt 0:02:03]} b6 {[%emt 0:02:17]} 8. a3 {[%emt 0:00:15]} Bf8 {[%emt 0:01:54]} 9. Qg3 {[%emt 0:03:58]} Nh6 {[%emt 0:12:01]} 10. h4 {[%emt 0:04:21]} Nf7 {[%emt 0:00:32]} 11. Nf3 {[%emt 0:03:00]} Rg8 {[%emt 0:04:52]} 12. Qh3 {[%emt 0:04:06]} Ba6 {[%emt 0:05:33]} 13. g4 {[%emt 0:05:31]} Bxf1 {[%emt 0:06:09]} 14. Rxf1 {[%emt 0:01:31]} Nc6 {[%emt 0:04:51]} 15. Bg5 {[%emt 0:04:11]} Nh6 {[%emt 0:12:47]} 16. gxf5 {[%emt 0:05:38]} Nxf5 {[%emt 0:02:05]} 17. Ne2 {[%emt 0:02:52]} Be7 {[%emt 0:05:25]} 18. Rd1 {[%emt 0:06:28]} h6 {[%emt 0:06:38]} 19. Bxe7 {[%emt 0:03:21]} Qxe7 {[%emt 0:00:03]} 20. Rg1 {[%emt 0:03:52]} O-O-O {[%emt 0:01:54]} 21. Kd2 {[%emt 0:01:51]} Rdf8 {[%emt 0:03:42]} 22. Kc1 {[%emt 0:02:10]} Nb8 {[%emt 0:02:25]} 23. Rg2 {[%emt 0:01:29]} Rf7 {[%emt 0:02:41]} 24. Rdg1 {[%emt 0:00:38]} Rfg7 {[%emt 0:00:02]} 25. Nf4 {[%emt 0:00:31]} Qf7 {[%emt 0:02:29]} 26. Qg4 {[%emt 0:01:17]} Nd7 {[%emt 0:04:00]} 27. c3 {[%emt 0:01:53]} Nf8 {[%emt 0:00:31]} 28. Ne2 {[%emt 0:01:04]} Nh7 {[%emt 0:01:09]} 29. Ng3 {[%emt 0:02:57]} Kb7 {[%emt 0:17:27]} 30. Nxf5 {[%emt 0:00:29]} exf5 {[%emt 0:00:00]} 31. Qf4 {[%emt 0:00:20]} h5 {[%emt 0:00:00]} 32. Ne1 {[%emt 0:01:23]} Nf8 {[%emt 0:00:00]} 33. Nd3 {[%emt 0:01:16]} Ne6 {[%emt 0:00:00]} 34. Qf3 {[%emt 0:00:07]} c6 {[%emt 0:00:00]} 35. Nf4 {[%emt 0:00:31]} Nxf4 {[%emt 0:00:00]} 36. Qxf4 {[%emt 0:00:07]} Qe6 {[%emt 0:00:00]} 37. Rg5 {[%emt 0:00:30]} Kc8 {[%emt 0:00:00]} 38. Kd2 {[%emt 0:00:47]} Kd7 {[%emt 0:00:00]} 39. a4 {[%emt 0:00:21]} Ke7 {[%emt 0:00:00]} 40. Qf3 {[%emt 0:00:43]} Kf7 {[%emt 0:00:00]} 41. b4 {[%emt 0:00:22]} Rd8 {[%emt 0:00:15]} 42. Qg3 {[%emt 0:00:10]} Rgg8 {[%emt 0:00:38]} 43. Qe3 {[%emt 0:00:46]} a6 {[%emt 0:01:11]} 44. R5g3 {[%emt 0:00:33]} Rg7 {[%emt 0:02:31]} 45. Qh6 {[%emt 0:01:10]} Rdg8 {[%emt 0:00:22]} 46. Qg5 {[%emt 0:01:05]} b5 {[%emt 0:01:42]} 47. a5 {[%emt 0:00:11]} Rh7 {[%emt 0:00:39]} 48. Re1 {[%emt 0:00:13]} Re8 {[%emt 0:00:50]} 49. Rge3 {[%emt 0:00:39]} Rg7 {[%emt 0:00:54]} 50. Qf6+ {[%emt 0:00:26]} Qxf6 {[%emt 0:00:12]} 51. exf6 {[%emt 0:00:04]} Rxe3 {[%emt 0:00:53]} 52. Rxe3 {[%emt 0:00:30]} Kxf6 {[%emt 0:00:02]} 53. f4 {[%emt 0:00:18]} Re7 {[%emt 0:01:51]} 1/2-1/2

[Event "34th MPL National U12 Chess-ch 2022"]
[Site "Mysore"]
[Date "2022.04.11"]
[Round "6.6"]
[White "Jain, Kushagra"]
[Black "Sidharth Sreekumar"]
[Result "1/2-1/2"]
[ECO "B90"]
[WhiteElo "1452"]
[BlackElo "1418"]
[Annotator "NA RC"]
[PlyCount "52"]
[EventDate "2022.04.09"]
[EventCountry "IND"]
[SourceTitle "playchess.com"]
[Source "ChessBase"]
[SourceQuality "1"]
[TimeControl "5400+30"]

1. e4 {[%emt 0:00:09]} c5 {[%emt 0:00:13]} 2. Nf3 {[%emt 0:00:04]} d6 {[%emt 0:00:08]} 3. d4 {[%emt 0:00:13]} cxd4 {[%emt 0:00:03]} 4. Nxd4 {[%emt 0:00:06]} Nf6 {[%emt 0:00:07]} 5. Nc3 {[%emt 0:00:04]} a6 {[%emt 0:00:08]} 6. Be3 {[%emt 0:00:16]} e5 {[%emt 0:00:05]} 7. Nb3 {[%emt 0:00:04]} Be7 {[%emt 0:00:15]} 8. f3 {[%emt 0:00:08]} Be6 {[%emt 0:00:18]} 9. Qd2 {[%emt 0:00:06]} h5 {[%emt 0:00:22]} 10. O-O-O {[%emt 0:01:20]} Nbd7 {[%emt 0:00:02]} 11. Kb1 {[%emt 0:01:01]} Rc8 {[%emt 0:00:32]} 12. Nd5 {[%emt 0:00:36]} Nxd5 {[%emt 0:00:21]} 13. exd5 {[%emt 0:00:04]} Bf5 {[%emt 0:00:05]} 14. Bd3 {[%emt 0:00:04]} Bxd3 {[%emt 0:00:06]} 15. Qxd3 {[%emt 0:00:04]} Bg5 {[%emt 0:00:04]} 16. Bf2 {[%emt 0:01:35]} h4 {[%emt 0:07:05]} 17. g3 {[%emt 0:08:33]} g6 {[%emt 0:04:37]} 18. f4 {[%emt 0:18:55]} exf4 {[%emt 0:10:41]} 19. gxh4 {[%emt 0:00:54]} Ne5 {[%emt 0:01:38]} 20. Qe4 {[%emt 0:04:44]} Bxh4 {[%emt 0:03:36]} 21. Qxf4 {[%emt 0:01:16]} Qf6 {[%emt 0:03:37]} 22. Qa4+ {[%emt 0:01:31]} Kf8 {[%emt 0:01:09]} 23. Bd4 {[%emt 0:03:02]} Rh5 {[%emt 0:10:56]} 24. Rhf1 {[%emt 0:04:07]} Rf5 {[%emt 0:00:28]} 25. Rf2 {[%emt 0:54:04]} Rf4 26. Rxf4 {[%emt 0:00:00]} Qf5 {[%emt 0:00:33]} 1/2-1/2

[Event "34th MPL National U12 Chess-ch 2022"]
[Site "Mysore"]
[Date "2022.04.12"]
[Round "7.1"]
[White "Vivaan Vijay Saraogi"]
[Black "Vaz, Ethan"]
[Result "0-1"]
[ECO "A05"]
[WhiteElo "1519"]
[BlackElo "1384"]
[Annotator "NA RC"]
[PlyCount "80"]
[EventDate "2022.04.09"]
[EventCountry "IND"]
[SourceTitle "playchess.com"]
[Source "ChessBase"]
[SourceQuality "1"]
[TimeControl "5400+30"]

1. Nf3 {[%emt 0:00:08]} d5 {[%emt 0:00:18]} 2. g3 {[%emt 0:00:19]} Nf6 {[%emt 0:00:37]} 3. Bg2 {[%emt 0:00:11]} e6 {[%emt 0:00:40]} 4. d3 {[%emt 0:00:08]} Be7 {[%emt 0:03:54]} 5. O-O {[%emt 0:00:33]} O-O {[%emt 0:00:17]} 6. Nbd2 {[%emt 0:00:06]} b6 {[%emt 0:03:24]} 7. Re1 {[%emt 0:04:05]} Bb7 {[%emt 0:03:15]} 8. b3 {[%emt 0:00:07]} c5 {[%emt 0:02:35]} 9. Bb2 {[%emt 0:00:30]} Nc6 {[%emt 0:01:23]} 10. e4 {[%emt 0:00:15]} Re8 {[%emt 0:03:21]} 11. e5 {[%emt 0:00:22]} Nd7 {[%emt 0:00:26]} 12. Qe2 {[%emt 0:00:43]} Rc8 {[%emt 0:02:45]} 13. c4 {[%emt 0:01:58]} Nf8 {[%emt 0:02:48]} 14. h4 {[%emt 0:02:22]} Nb4 {[%emt 0:04:45]} 15. Red1 {[%emt 0:05:23]} dxc4 {[%emt 0:15:45]} 16. Nxc4 {[%emt 0:00:21]} b5 {[%emt 0:01:23]} 17. Ne3 {[%emt 0:00:22]} Nd5 {[%emt 0:02:37]} 18. Ng4 {[%emt 0:02:13]} Ba6 {[%emt 0:08:25]} 19. Rac1 {[%emt 0:00:57]} Qa5 {[%emt 0:04:44]} 20. Ng5 {[%emt 0:04:41]} h5 {[%emt 0:07:14]} 21. Bxd5 {[%emt 0:02:08]} exd5 {[%emt 0:01:41]} 22. Ne3 {[%emt 0:08:52]} Bxg5 {[%emt 0:05:56]} 23. hxg5 {[%emt 0:00:11]} d4 {[%emt 0:01:10]} 24. Nf5 {[%emt 0:01:30]} Qb6 {[%emt 0:07:04]} 25. Re1 {[%emt 0:04:34]} Ng6 {[%emt 0:08:20]} 26. Nd6 {[%emt 0:01:10]} Rxe5 {[%emt 0:01:04]} 27. Nxc8 {[%emt 0:00:01]} Qe6 {[%emt 0:01:09]} 28. Qf1 {[%emt 0:07:49]} Bxc8 {[%emt 0:01:32]} 29. f4 {[%emt 0:21:03]} Rxe1 {[%emt 0:02:01]} 30. Qxe1 {[%emt 0:00:44]} Qh3 {[%emt 0:01:38]} 31. Qf2 {[%emt 0:02:55]} Bb7 {[%emt 0:00:36]} 32. Qh2 {[%emt 0:00:07]} Qg4 {[%emt 0:00:09]} 33. Rf1 {[%emt 0:03:58]} h4 {[%emt 0:00:22]} 34. Kf2 {[%emt 0:09:09]} Qf3+ {[%emt 0:00:58]} 35. Ke1 {[%emt 0:00:46]} hxg3 {[%emt 0:00:09]} 36. Qd2 {[%emt 0:01:04]} Qg4 {[%emt 0:00:45]} 37. Qe2 {[%emt 0:03:17]} Qxe2+ {[%emt 0:00:12]} 38. Kxe2 {[%emt 0:00:01]} g2 {[%emt 0:00:05]} 39. Rg1 {[%emt 0:00:33]} Nxf4+ {[%emt 0:00:05]} 40. Kd2 {[%emt 0:00:06]} Nh3 {[%emt 0:00:16]} 0-1

[Event "34th MPL National U12 Chess-ch 2022"]
[Site "Mysore"]
[Date "2022.04.12"]
[Round "7.2"]
[White "Adireddy Arjun"]
[Black "Goutham Krishna H"]
[Result "0-1"]
[ECO "B84"]
[WhiteElo "1796"]
[BlackElo "1541"]
[Annotator "NA RC"]
[PlyCount "104"]
[EventDate "2022.04.09"]
[EventCountry "IND"]
[SourceTitle "playchess.com"]
[Source "ChessBase"]
[SourceQuality "1"]
[TimeControl "5400+30"]

1. e4 {[%emt 0:00:10]} c5 {[%emt 0:00:05]} 2. Nf3 {[%emt 0:00:08]} d6 {[%emt 0:00:03]} 3. d4 {[%emt 0:00:06]} cxd4 {[%emt 0:00:02]} 4. Nxd4 {[%emt 0:00:08]} Nf6 {[%emt 0:00:02]} 5. Nc3 {[%emt 0:00:09]} a6 {[%emt 0:00:07]} 6. Be3 {[%emt 0:00:05]} e6 {[%emt 0:00:06]} 7. Be2 {[%emt 0:00:53]} Qc7 {[%emt 0:00:08]} 8. f4 {[%emt 0:00:14]} b5 {[%emt 0:00:02]} 9. a3 {[%emt 0:00:43]} Bb7 {[%emt 0:00:08]} 10. Bf3 {[%emt 0:00:04]} Nbd7 {[%emt 0:00:08]} 11. Qe2 {[%emt 0:00:10]} h5 {[%emt 0:00:33]} 12. O-O-O {[%emt 0:05:52]} Rc8 {[%emt 0:01:04]} 13. Rhe1 {[%emt 0:02:07]} Be7 {[%emt 0:09:09]} 14. Bg1 {[%emt 0:03:23]} g6 {[%emt 0:03:23]} 15. e5 {[%emt 0:03:42]} dxe5 {[%emt 0:00:59]} 16. fxe5 {[%emt 0:00:10]} Bxf3 {[%emt 0:08:45]} 17. gxf3 {[%emt 0:20:45]} Ng8 {[%emt 0:02:42]} 18. f4 {[%emt 0:02:26]} Nh6 {[%emt 0:01:26]} 19. Ne4 {[%emt 0:00:56]} O-O {[%emt 0:03:33]} 20. Nd6 {[%emt 0:15:08]} Bxd6 {[%emt 0:01:02]} 21. exd6 {[%emt 0:00:58]} Qc4 {[%emt 0:00:11]} 22. Qxc4 {[%emt 0:02:04]} Rxc4 {[%emt 0:00:32]} 23. Bf2 {[%emt 0:05:14]} Ng4 {[%emt 0:03:50]} 24. Bg3 {[%emt 0:00:14]} Rfc8 {[%emt 0:01:41]} 25. Re2 {[%emt 0:04:23]} Ngf6 {[%emt 0:03:15]} 26. Nf3 {[%emt 0:03:20]} R4c6 {[%emt 0:10:10]} 27. Ne5 {[%emt 0:01:50]} Rb6 {[%emt 0:00:04]} 28. Bh4 {[%emt 0:07:07]} Rb7 {[%emt 0:02:28]} 29. Bxf6 {[%emt 0:01:14]} Nxf6 {[%emt 0:00:02]} 30. b3 {[%emt 0:06:08]} Nd5 {[%emt 0:01:45]} 31. Rd4 {[%emt 0:01:18]} Nb6 {[%emt 0:17:00]} 32. c4 {[%emt 0:11:46]} bxc4 {[%emt 0:02:04]} 33. bxc4 {[%emt 0:01:49]} f6 {[%emt 0:00:31]} 34. Nxg6 {[%emt 0:00:19]} Kf7 {[%emt 0:00:07]} 35. f5 {[%emt 0:01:34]} exf5 {[%emt 0:01:33]} 36. Re7+ {[%emt 0:00:53]} Rxe7 {[%emt 0:00:12]} 37. Nxe7 {[%emt 0:00:02]} Rxc4+ {[%emt 0:00:17]} 38. Rxc4 {[%emt 0:00:03]} Nxc4 {[%emt 0:00:01]} 39. Nxf5 {[%emt 0:00:12]} Ke6 {[%emt 0:00:24]} 40. Ng7+ {[%emt 0:00:06]} Kxd6 {[%emt 0:00:04]} 41. Nxh5 {[%emt 0:00:04]} Ke5 {[%emt 0:00:23]} 42. Kc2 {[%emt 0:02:54]} Nxa3+ {[%emt 0:00:27]} 43. Kb3 {[%emt 0:00:07]} Nb5 {[%emt 0:00:09]} 44. h4 {[%emt 0:00:45]} f5 {[%emt 0:00:28]} 45. Kc4 {[%emt 0:00:43]} f4 {[%emt 0:00:15]} 46. Ng7 {[%emt 0:00:28]} Nd6+ {[%emt 0:00:34]} 47. Kd3 {[%emt 0:00:11]} Nf5 {[%emt 0:00:35]} 48. h5 {[%emt 0:00:22]} a5 {[%emt 0:00:11]} 49. Ne8 {[%emt 0:00:45]} a4 {[%emt 0:00:15]} 50. Nc7 {[%emt 0:00:25]} a3 {[%emt 0:00:17]} 51. Kc3 {[%emt 0:00:05]} f3 {[%emt 0:00:09]} 52. Nb5 {[%emt 0:00:03]} f2 {[%emt 0:00:24]} 0-1